Cogmind - Beta 10.2 @@@ ROGUE MODE // 2021.10.13 @ 02:49:39 Player: ktur Result: Escaped! Performance ------------- Evolutions (9) 4500 Regions Visited (32) 6400 Robots Destroyed (215) 1075 Value Destroyed (11014) 11014 Prototype IDs (74) 1480 Alien Tech Used (3) 600 Bonus (22981) 22981 TOTAL SCORE: 48050 Bonus ------- High Alert Combat Kills 387 Follower Combat Kills 1703 Network Hubs Disabled 200 Aligned with FarCom 300 Met Zhirov 300 Met Warlord at Base 500 MAIN.C Attacked Warlord 500 Built Enhanced Grunts 300 A7 Reached Mainframe 300 Met R17 at Cetus 500 Met Warlord at Research 2000 Invited to Help at Command 2000 Destroyed MAIN.C Guards 500 Met MAIN.C 5000 Destroyed MAIN.C Shell 5000 Met Warlord at Command 2000 Win 3000 Friendly Fire -1509 Cogmind --------- Core Integrity 631/1600 Matter 287/300 Energy 1092/1100 System Corruption 12% Temperature Cool (8) Movement Hovering (58) Location To Epsilon Eridani Parts ------- > --- POWER (3) -------- (None) > --- PROPULSION (6) --- Combat Antigrav System Combat Antigrav System Combat Linear Gravjet Combat Linear Gravjet > --- UTILITY (14) ----- Large Storage Unit High-capacity Storage Unit High-capacity Storage Unit Experimental Energy Well Spectral Analyzer Advanced Targeting Computer Advanced Targeting Computer Advanced Armor Integrity Analyzer > --- WEAPON (2) ------- (None) > --- INVENTORY (26) --- Particle Reactor Light Quantum Reactor Light Quantum Reactor Combat Antigrav System Combat Antigrav System Impulse Thruster Array Advanced Heat Sink Experimental Energy Well (1000) Experimental Energy Well (694) Experimental Matter Compressor (228) Dimensional Node Initializer Transdimensional Reconstructor Terrabomb Enhanced Nova Cannon Micro-nuke Launcher Advanced Remote Datajack Peak State ------------ > --- POWER ------------ Light Particle Reactor Light Quantum Reactor Light Quantum Reactor > --- PROPULSION ------- Combat Antigrav System Combat Antigrav System Combat Linear Gravjet Combat Linear Gravjet Combat Linear Gravjet Combat Linear Gravjet > --- UTILITY ---------- 2N-1CE's Frost Array Large Storage Unit High-capacity Storage Unit High-capacity Storage Unit Experimental Energy Well Spectral Analyzer Advanced Targeting Computer Advanced Armor Integrity Analyzer Centrium Light Armor Plating Advanced Force Field Improved Hacking Suite Advanced Hacking Suite Advanced Hacking Suite Ghost Barrier > --- WEAPON ----------- Improved Potential Cannon > --- INVENTORY -------- Light Particle Reactor Light Quantum Reactor Vortex Chain Reactor Combat Antigrav System Combat Antigrav System Advanced Heat Sink Experimental Energy Well Experimental Energy Well Experimental Matter Compressor Advanced Targeting Computer Experimental Utility Shielding Hardened Heavy Armor Plating Centrium Light Armor Plating Centrium Medium Armor Plating Advanced Remote Shield Dimensional Node Initializer Transdimensional Reconstructor Terrabomb Terrabomb Enhanced Nova Cannon Vortex Catalyst Activator Advanced Remote Datajack [Rating: 210] Favorites ----------- Power Micro Fission Core Engine Ion Engine Power Core Micro Fission Core Reactor Light Quantum Reactor Propulsion Combat Antigrav System Treads Light Treads Leg Myomer Leg Wheel Wheel Hover Unit Combat Antigrav System Flight Unit Field Propulsion Array Utility Advanced Hacking Suite Device Improved Transmission Jammer Storage Large Storage Unit Processor Advanced Armor Integrity Analyzer Hackware Advanced Hacking Suite Protection Centrium Medium Armor Plating Weapon Assault Rifle Energy Gun Dispersion Rifle Energy Cannon Potential Cannon Ballistic Gun Assault Rifle Ballistic Cannon Heavy Flak Cannon Launcher Gamma Bomb Array Special Weapon Improved Remote Datajack Slashing Weapon Phasing Sabre Piercing Weapon Enhanced Force Lance Special Melee Weapon Improved Datajack Build | -11 -10 -10 -10 -9 -8 -7 -6 -6 -6 -6 -6 -5 -5 -5 -5 -5 -5 -4 -4 -4 -4 -4 -4 -4 -3 -3 -3 -2 -2 -2 -1 -1 ------- Run | Scr Mat Min Exi Min Mat Fac Fac Ext Cet Arc Hub Fac Was Fac Upp Upp War Pro Fac Was Fac Upp Upp Zhi Pro Res Tes Res Qua Sec Acc Com Slots Evolved 18 | . . . . . 4 2 2 . . . . 2 . . . . . . 2 . . . . . . 2 . 2 . . 2 . Power 2 | . . . . . . . 1 . . . . . . . . . . . . . . . . . . . . 1 . . . . Propulsion 4 | . . . . . 2 . . . . . . . . . . . . . 2 . . . . . . . . . . . . . Utility 12 | . . . . . 2 2 1 . . . . 2 . . . . . . . . . . . . . 2 . 1 . . 2 . Weapon . | . . . . . . . . . . . . . . . . . . . . . . . . . . . . . . . . . Parts Attached 454 | 6 4 . 2 . 13 24 16 17 10 . 4 32 . 17 5 14 19 9 19 2 20 13 5 13 4 32 67 23 13 6 20 25 Power 79 | 1 1 . . . 1 5 3 1 . . 1 5 . 3 1 3 . 1 2 . 4 . 1 4 1 8 13 9 2 . 3 6 Engine 7 | 1 1 . . . 1 2 1 . . . 1 . . . . . . . . . . . . . . . . . . . . . Core 26 | . . . . . . 3 2 1 . . . 3 . 3 1 . . . 2 . 2 . 1 2 1 3 2 . . . . . Reactor 46 | . . . . . . . . . . . . 2 . . . 3 . 1 . . 2 . . 2 . 5 11 9 2 . 3 6 Propulsion 81 | 2 . . . . 5 1 . . . . . 10 . 1 . 2 6 1 6 1 7 2 1 1 2 4 18 5 2 . 4 . Treads 6 | 2 . . . . 3 . . . . . . . . . . . . 1 . . . . . . . . . . . . . . Leg 3 | . . . . . . . . . . . . . . . . . . . . . . . . . . . 3 . . . . . Wheel 5 | . . . . . 2 . . . . . . 3 . . . . . . . . . . . . . . . . . . . . Hover 54 | . . . . . . . . . . . . 4 . . . . 1 . 6 1 7 2 1 1 2 3 15 5 2 . 4 . Flight 13 | . . . . . . 1 . . . . . 3 . 1 . 2 5 . . . . . . . . 1 . . . . . . Utility 143 | 1 2 . 2 . 2 11 7 3 1 . 2 8 . 8 1 3 9 5 7 . 4 2 . 6 . 8 11 8 3 3 10 16 Device 59 | . . . . . 2 3 2 . . . 1 1 . 4 1 1 6 1 4 . 2 2 . 5 . 4 8 3 1 1 3 4 Storage 22 | 1 1 . 2 . . 5 . . 1 . . 1 . . . . 2 . 2 . . . . . . 1 . 3 . 2 . 1 Processor 10 | . . . . . . . 1 1 . . . 1 . . . 1 1 1 . . . . . . . 1 1 1 . . . 1 Hackware 17 | . . . . . . 3 3 1 . . 1 3 . 1 . . . . . . 1 . . . . 1 2 . . . 1 . Protection 35 | . 1 . . . . . 1 1 . . . 2 . 3 . 1 . 3 1 . 1 . . 1 . 1 . 1 2 . 6 10 Artifact . | . . . . . . . . . . . . . . . . . . . . . . . . . . . . . . . . . Weapon 151 | 2 1 . . . 5 7 6 13 9 . 1 9 . 5 3 6 4 2 4 1 5 9 3 2 1 12 25 1 6 3 3 3 Energy Gun 14 | . . . . . 1 . . . 2 . . 2 . . . . . . . . 1 . . . 1 4 3 . . . . . Energy Cannon 26 | . . . . . . . . . . . . . . . . . . . . 1 1 1 1 1 . 3 6 1 5 3 2 1 Ballistic Gun 34 | 2 1 . . . 3 1 . . 1 . . 4 . . . . . . 1 . 2 5 1 1 . . 12 . . . . . Ballistic Cannon 1 | . . . . . . . . . . . . . . 1 . . . . . . . . . . . . . . . . . . Launcher 27 | . . . . . 1 . 2 . 1 . 1 . . 1 1 3 1 . . . . 3 1 . . 5 4 . . . 1 2 Special Weapon 8 | . . . . . . . . . . . . 1 . 2 1 1 2 . . . . . . . . . . . 1 . . . Impact Weapon . | . . . . . . . . . . . . . . . . . . . . . . . . . . . . . . . . . Slashing Weapon 25 | . . . . . . 5 3 8 5 . . 2 . . . . . 1 1 . . . . . . . . . . . . . Piercing Weapon 10 | . . . . . . . 1 . . . . . . 1 1 2 1 1 2 . 1 . . . . . . . . . . . Special Melee Weapon 6 | . . . . . . 1 . 5 . . . . . . . . . . . . . . . . . . . . . . . . Unidentified Prototypes 24 | . . . . . . . 1 . 2 . . . . . . . 5 . . . . . . 5 . 3 6 2 . . . . Parts Lost 99 | . 1 . . . 5 1 . 1 . . . 14 . 1 1 1 2 6 2 . 9 . 1 . 5 12 17 . 2 2 . 16 Power 22 | . 1 . . . 1 . . . . . . . . . . . . 1 1 . 3 . . . 1 3 4 . 2 1 . 4 Propulsion 33 | . . . . . 3 . . . . . . 7 . . 1 . 1 3 . . 3 . 1 . 1 4 7 . . . . 2 Utility 23 | . . . . . . 1 . 1 . . . 3 . 1 . . 1 2 . . 1 . . . 1 2 2 . . . . 8 Weapon 21 | . . . . . 1 . . . . . . 4 . . . 1 . . 1 . 2 . . . 2 3 4 . . 1 . 2 Highest Loss Streak 14 | . 1 . . . 4 1 . 1 . . . 5 . 1 1 1 2 4 2 . 6 . 1 . 5 3 7 . 1 2 . 14 Average Slot Usage (%) 85 | . 96 100 100 100 85 75 79 79 73 73 73 79 76 81 81 81 81 67 79 94 90 90 93 88 95 90 87 94 94 94 96 88 Engine 1 | . 13 14 14 14 8 1 . . . . 3 . . . . . . . 1 . . . . . . . . . . . . . Core 4 | . . . . . . 5 11 13 6 6 2 3 11 10 10 4 . . 5 10 5 10 10 10 9 3 . . . . . . Reactor 3 | . . . . . . . . . . . . 2 . . . 2 5 3 . . 3 . . . . 3 7 12 12 12 10 9 Treads 3 | . 28 28 28 28 23 . . . . . . . . . . . . 2 . . . . . . . . . . . . . . Hover 9 | . . . . . . . . . . . . 5 . . . . . . 20 31 29 26 25 29 30 18 15 26 25 26 24 23 Flight 4 | . . . . . . 7 6 6 6 6 6 2 11 11 10 15 17 8 . . . . . . . 3 1 . . . . . Device 6 | . . . . . 14 3 8 1 . . . 3 5 10 11 11 8 3 2 . 3 4 5 5 9 10 7 6 4 4 7 6 Storage 12 | . 15 14 21 28 18 19 13 13 19 20 20 9 5 5 5 5 6 11 11 15 11 10 10 10 10 12 14 16 17 17 16 16 Processor 8 | . . . . . . . 2 12 13 13 13 10 11 11 11 11 11 11 10 10 6 5 5 5 5 8 9 10 13 13 12 14 Hackware 14 | . . . . . . 21 18 11 13 13 12 22 17 17 17 17 17 17 15 15 15 21 21 21 21 19 18 14 13 13 14 6 Protection 3 | . 9 14 6 . . . 2 5 . . . 3 5 5 4 3 5 3 6 5 4 5 5 5 . . . 1 3 4 6 7 Ballistic Gun 4 | . 28 28 28 28 16 1 . . . . . 3 . . . . . . . . 1 4 4 . 3 . 5 . . . . . Slashing Weapon 2 | . . . . . . 13 8 6 12 13 12 3 . . . . . 1 4 5 1 . . . . . . . . . . . Piercing Weapon 1 | . . . . . . . 3 4 . . . . . 3 4 . . . 1 . 1 . . . . . . . . . . . Naked Turns . | . . . . . . . . . . . . . . . . . . . . . . . . . . . . . . . . . Heaviest Build 199 | 10 42 42 73 73 75 66 71 71 70 70 72 77 39 45 43 52 49 48 55 68 77 64 73 59 58 113 106 144 143 159 186 199 Greatest Support 188 | 40 40 40 40 40 65 72 72 72 72 72 72 72 46 46 46 39 39 75 88 88 135 109 110 135 135 119 167 180 180 180 188 188 Greatest Overweight (x) 11 | . 1 1 1 1 2 . . . . . . 7 . 1 1 2 11 11 11 . . . . . . 1 3 . . . 1 1 Average Overweight (x) . | . . 1 1 1 1 . . . . . . . . . . . . 1 . . . . . . . . . . . . . . Largest Inventory Capacity 26 | 6 14 12 20 20 20 24 22 16 22 22 22 22 10 10 10 10 10 10 16 16 16 16 16 16 16 22 22 24 24 26 26 26 Average Capacity 16 | 5 11 12 16 20 20 19 16 16 21 22 22 14 10 10 10 10 10 10 11 16 16 16 16 16 16 19 22 23 24 25 26 26 Most Carried 26 | 6 12 12 20 20 20 22 21 16 22 22 22 22 10 10 10 10 10 10 16 16 16 16 16 16 16 22 22 24 24 26 26 26 Average Carried 16 | 3 9 12 15 20 19 18 15 15 21 22 22 13 9 9 9 9 9 9 10 16 15 15 15 15 16 18 21 23 23 25 25 20 Final Capacity 26 | 6 12 12 20 20 20 22 16 16 22 22 22 10 10 10 10 10 10 10 16 16 16 16 16 16 16 22 22 24 24 26 26 26 Final Carried 26 | 6 12 12 20 20 20 22 16 16 22 22 22 9 10 10 10 10 10 7 16 16 16 16 16 16 16 21 22 24 23 26 26 17 Class Distribution -------------------- 65% | Hacker-Mutant 9% | Mutant 5% | Wizard-Mutant 5% | Commander-Mutant 4% | Hauler-Mutant Dominant Class ---------------- Mutant | -10/Materials Mutant | -10/Mines Hauler-Mutant | -10/Exiles Hauler-Mutant | -9/Mines Hauler-Mutant | -8/Materials Hacker-Mutant | -7/Factory Hacker-Mutant | -6/Factory Hacker-Mutant | -6/Extension Commander-Mutant | -6/Cetus Commander-Mutant | -6/Archives Hacker-Mutant | -6/Hub_04(d) Hacker-Mutant | -5/Factory Hacker-Scout | -5/Waste Hacker-Ninja | -5/Factory Hacker-Mutant | -5/Upper Caves Hacker-Mutant | -5/Upper Caves Hacker-Mutant | -5/Warlord Hacker-Mutant | -4/Proximity Caves Hacker-Mutant | -4/Factory Hacker-Mutant | -4/Waste Hacker-Mutant | -4/Factory Hacker-Mutant | -4/Upper Caves Hacker-Mutant | -4/Upper Caves Hacker-Mutant | -4/Zhirov Hacker-Mutant | -3/Proximity Caves Hacker-Mutant | -3/Research Hacker-Mutant | -3/Testing Hacker-Mutant | -2/Research Hacker-Mutant | -2/Quarantine Hacker-Mutant | -2/Section 7 Wizard-Mutant | -1/Access Generator-Mutant | -1/Command Resources | -11 -10 -10 -10 -9 -8 -7 -6 -6 -6 -6 -6 -5 -5 -5 -5 -5 -5 -4 -4 -4 -4 -4 -4 -4 -3 -3 -3 -2 -2 -2 -1 -1 ----------- Run | Scr Mat Min Exi Min Mat Fac Fac Ext Cet Arc Hub Fac Was Fac Upp Upp War Pro Fac Was Fac Upp Upp Zhi Pro Res Tes Res Qua Sec Acc Com Matter Collected 8474 | 268 274 . . 15 385 235 315 304 170 . 70 537 . 208 594 257 281 81 71 . 549 358 314 . 122 404 1380 570 102 55 210 345 Remotely . | . . . . . . . . . . . . . . . . . . . . . . . . . . . . . . . . . Salvage Created 9200 | 77 457 . . . 508 289 64 944 98 . 315 684 . 189 210 272 . . 71 . 561 339 198 . 78 574 1448 114 608 379 506 217 Parts 476 | 2 34 . . . 25 9 6 43 1 . 16 47 . 16 6 16 . . 4 . 33 12 9 . 5 34 84 6 22 10 27 9 Haulers Intercepted 2 | . . . . . . 1 . . . . . . . . . . . . . . . . . . . . . . . 1 . . Recyclers Shooed 7 | . . . . . 2 . . . . . . 1 . . . . . . . . 1 . . . . 2 1 . . . . . Parts Field Recycled . | . . . . . . . . . . . . . . . . . . . . . . . . . . . . . . . . . Retrieved Matter . | . . . . . . . . . . . . . . . . . . . . . . . . . . . . . . . . . Parts Self-Destructed 23 | . . . . . . . . . . . . . . . 2 1 5 . . . . 5 5 . 5 . . . . . . . Prevented 15 | . . . . . . . . . . . . . . . . 10 5 . . . . . . . . . . . . . . . Kills | -11 -10 -10 -10 -9 -8 -7 -6 -6 -6 -6 -6 -5 -5 -5 -5 -5 -5 -4 -4 -4 -4 -4 -4 -4 -3 -3 -3 -2 -2 -2 -1 -1 ------- Run | Scr Mat Min Exi Min Mat Fac Fac Ext Cet Arc Hub Fac Was Fac Upp Upp War Pro Fac Was Fac Upp Upp Zhi Pro Res Tes Res Qua Sec Acc Com Combat Hostiles Destroyed 170 | . 11 . . . 10 4 3 12 3 . . 11 . 7 5 5 . . 1 . 7 13 4 . 2 17 19 4 13 7 6 6 Melee 28 | . . . . . . 4 1 12 . . . 1 . 2 1 . . . 1 . 5 . . . 1 . . . . . . . Guns 39 | . 11 . . . 8 . . . . . . 7 . . . . . . . . 1 . . . . 1 11 . . . . . Cannons 18 | . . . . . . . . . . . . . . 1 . . . . . . 1 . 1 . 1 1 . 1 4 2 6 . AOE 77 | . . . . . 2 . 2 . 3 . . 3 . 4 4 4 . . . . . 13 3 . . 15 1 3 9 5 . 6 Classes Destroyed 18 | 1 4 . . . 1 1 1 3 . . 1 1 . . . 1 . . . . . 1 . . 1 . . 2 . . . . Worker 20 | . 1 . . . 1 . . . . . 4 3 . . . . . . . . 4 . . . . 2 1 . 2 . . 2 Builder 7 | . . . . . . . . . . . 1 . . . . . . . . . . . . . . . 4 . 2 . . . Hauler 2 | . . . . . . 1 . . . . . . . . . . . . . . . . . . . . . . . 1 . . Recycler 3 | 1 . . . . . . . 1 . . 1 . . . . . . . . . . . . . . . . . . . . . Operator 7 | . 3 . . . . . . . . . . . . . . . . . . . . . . . . 1 . 1 1 . . 1 Watcher 4 | . . . . . . . . 1 . . . . . . . . . . . . 1 . . . . . . . . . . 2 Swarmer 35 | . 3 . . . . . 2 . . . . . . 4 . . . . . . . 5 3 . . 12 3 3 . . . . Saboteur 1 | . . . . . . . . . . . . . . . . . . . . . . . . . 1 . . . . . . . Grunt 64 | . 8 . . . 8 1 . 4 3 . . . . 1 5 3 . . . . 3 7 . . . 2 8 . 8 2 . 1 Brawler 1 | . . . . . . . . . . . . . . . . . . . . . . 1 . . . . . . . . . . Duelist 1 | . . . . . . . . . . . . . . . . . . . . . 1 . . . . . . . . . . . Sentry 18 | . . . . . 2 3 . 5 . . . 1 . . . . . . 1 . . . 1 . . 1 . . . . 4 . Hunter 11 | . . . . . . . . . . . . 4 . . . . . . . . . . . . . 2 2 . 2 . . 1 Programmer 29 | . . . . . . . 1 . . . . 6 . 2 . . . . . . 3 . . . 1 . 6 . 3 3 2 2 Behemoth 3 | . . . . . . . . 2 . . . . . . . . . . . . . . . . . . . . . 1 . . S7 Guard 1 | . . . . . . . . . . . . . . . . . . . . . . . . . . . . . . 1 . . Enhanced Grunt 1 | . . . . . . . . . . . 1 . . . . . . . . . . . . . . . . . . . . . Combat Programmer 2 | . . . . . . . . . . . . . . . . . . . . . . . . . . . . . . . . 2 Striker 1 | . . . . . . . . . . . . . . . . . . . . . . . . . . . . 1 . . . . Master Thief 2 | . . . . . . . . . . . . . . . . 2 . . . . . . . . . . . . . . . . Butcher 1 | . . . . . . . . 1 . . . . . . . . . . . . . . . . . . . . . . . . Knight 1 | . . . . . . . . . . . . . . . . . . . . . . . . . . . . 1 . . . . Best Kill Streak 9 | 1 5 . . . 3 1 2 3 3 . 5 4 . 4 5 3 . . 1 . 5 9 3 . 1 7 7 4 9 4 2 4 Combat Bots Only 9 | . 4 . . . 3 1 2 3 3 . . 4 . 4 5 3 . . 1 . 4 9 3 . 1 6 4 4 6 3 2 2 Max Kills in Single Turn 5 | 1 2 . . . 2 1 1 1 1 . 5 3 . 3 3 1 . . 1 . 1 4 3 . 1 4 2 2 2 1 1 4 Gunslinging . | . . . . . . . . . . . . . . . . . . . . . . . . . . . . . . . . . Exploded 4 | . . . . . 2 . 1 . 1 . . 3 . 3 3 1 . . . . . 4 3 . . 4 1 2 1 1 . 1 Melee 1 | . . . . . . 1 1 1 . . . 1 . 1 1 . . . 1 . 1 . . . 1 . . . . . . . Uniques/NPCs Destroyed . | . . . . . . . . . . . . . . . . . . . . . . . . . . . . . . . . . Combat | -11 -10 -10 -10 -9 -8 -7 -6 -6 -6 -6 -6 -5 -5 -5 -5 -5 -5 -4 -4 -4 -4 -4 -4 -4 -3 -3 -3 -2 -2 -2 -1 -1 -------- Run | Scr Mat Min Exi Min Mat Fac Fac Ext Cet Arc Hub Fac Was Fac Upp Upp War Pro Fac Was Fac Upp Upp Zhi Pro Res Tes Res Qua Sec Acc Com Damage Taken 24188 | . 407 . . . 742 740 292 825 109 25 334 2272 . 660 117 246 507 1113 475 . 1806 249 74 . 531 2455 2832 288 857 285 400 5547 Core 4178 | . 42 . . . 122 218 28 138 18 . 27 385 . 115 19 39 161 70 39 . 348 88 . . 69 486 582 43 124 48 65 904 Absorbed by Shields 2013 | . . . . . . 93 . 19 26 . . . . . . . . . . . . . . . . 338 . . 65 . 383 1089 Core Remaining (%) 61 | 100 . . . 83 77 68 . . . . 75 . . . . . . 21 . . . . . . 52 . 17 . . 85 . 39 Volleys Fired 586 | 2 36 . . . 44 . 3 . 6 . 2 63 . 14 3 12 15 . . . 24 10 12 . 23 61 105 12 25 22 37 55 Largest 2 | 2 2 . . . 2 . 1 . 1 . 1 2 . 1 1 1 1 . . . 2 1 2 . 2 2 2 1 1 1 1 1 Hottest 240 | 40 40 . . . 76 . 36 . 240 . 43 115 . 53 43 46 40 . . . 120 46 125 . 125 214 120 200 200 200 200 200 Shots Fired 744 | 4 72 . . . 85 . 3 . 6 . 2 76 . 14 3 12 15 . . . 28 10 15 . 28 65 155 12 25 22 37 55 Gun 383 | 4 72 . . . 83 . . . 1 . . 75 . . . . . . . . 14 . 4 . 4 21 105 . . . . . Cannon 257 | . . . . . . . . . . . . . . 10 . . . . . . 14 . 9 . 24 31 32 12 25 22 37 41 Launcher 87 | . . . . . 2 . 3 . 5 . 2 . . 3 3 12 . . . . . 10 2 . . 13 18 . . . . 14 Special 17 | . . . . . . . . . . . . 1 . 1 . . 15 . . . . . . . . . . . . . . . Kinetic 348 | 4 72 . . . 74 . . . . . . 70 . 10 . . . . . . 8 . 4 . 4 . 102 . . . . . Thermal 284 | . . . . . 9 . . . 1 . . 5 . . . . . . . . 14 . 9 . 24 50 35 12 25 22 37 41 Explosive 50 | . . . . . 2 . 3 . 5 . 2 . . 3 3 1 . . . . . 10 2 . . 10 . . . . . 9 Electromagnetic 40 | . . . . . . . . . . . . . . . . 11 . . . . 6 . . . . 5 18 . . . . . Entropic 5 | . . . . . . . . . . . . . . . . . . . . . . . . . . . . . . . . 5 Robot Hit Streak 33 | 2 8 . . . 33 . 5 . 3 . . 8 . 14 4 6 20 . . . 26 . 4 . 7 8 13 2 5 12 16 17 Robot Miss Streak 6 | 1 3 . . . 2 . . . 1 . . 3 . 5 . 3 . . . . 1 . 1 . 1 3 6 2 1 2 1 1 Penetration Max 1 | . . . . . . . . . . . . 1 . . . . . . . . 1 . . . . . 1 . . . . . Secondary Targets 5 | . 1 . . . 1 . . . . . . . . . . . . . . . 1 . . . . . 2 . . . . . Max Gunslinging Chain 1 | . 1 . . . 1 . . . . . . . . . . . . . . . 1 . . . . . 1 . . . . . Shots Hit Robots 588 | 3 49 . . . 72 22 8 59 3 2 6 61 . 20 4 7 15 5 5 . 25 . 6 . 8 36 74 3 12 8 28 47 Core Hits 412 | 2 24 . . . 33 8 4 18 8 . 10 26 . 16 5 10 . . 1 . 18 22 8 . 2 49 57 5 17 11 12 46 Critical Hits 52 | . . . . . 1 . . 1 . . . 8 . 1 1 . . . 3 . 1 . 2 . . 2 11 2 4 4 . 11 Critical Kills 13 | . . . . . . . . . . . . 4 . . 1 . . . . . 1 . . . . . 3 1 1 2 . . Critical Parts Destroyed 32 | . . . . . 1 . . 1 . . . 4 . 1 . . . . 2 . . . 2 . . 1 8 1 3 1 . 7 Melee Attacks 290 | . . . . . . 71 44 84 1 2 9 16 . 18 2 1 1 8 18 . 15 . . . . . . . . . . . Impact . | . . . . . . . . . . . . . . . . . . . . . . . . . . . . . . . . . Slashing 169 | . . . . . . 70 20 32 1 2 9 16 . . . . . 5 14 . . . . . . . . . . . . . Piercing 90 | . . . . . . . 24 22 . . . . . 18 2 1 1 3 4 . 15 . . . . . . . . . . . Sneak Attacks 41 | . . . . . . 3 . 37 . . 1 . . . . . . . . . . . . . . . . . . . . . Combat Hostiles 6 | . . . . . . 1 . 5 . . . . . . . . . . . . . . . . . . . . . . . . Follow-up Attacks 12 | . . . . . . 5 3 2 . 1 1 . . . . . . . . . . . . . . . . . . . . . Damage Inflicted 41710 | 26 589 . . . 1036 858 437 1668 483 113 807 2515 . 953 644 566 . 172 234 . 1111 1657 647 . 218 2880 3127 1868 4941 2920 1226 10014 Guns 5869 | 26 553 . . . 822 . . . . . . 1669 . . . . . . . . 305 . 63 . 72 443 1916 . . . . . Cannons 10364 | . . . . . . . . . . . . . . 145 . . . . . . 502 . 179 . 146 359 . 683 2227 1722 1226 3175 Explosions 20575 | . . . . . 205 . 289 . 483 . 494 367 . 413 557 566 . . . . . 1657 405 . . 2078 1211 1185 2628 1198 . 6839 Melee 4743 | . . . . . . 858 148 1668 . 113 313 451 . 395 87 . . 172 234 . 304 . . . . . . . . . . . Ramming 159 | . 36 . . . 9 . . . . . . 28 . . . . . . . . . . . . . . . . 86 . . . Kinetic 5170 | 26 553 . . . 692 . . . . . . 1561 . 145 . . . . . . 205 . 63 . 72 . 1853 . . . . . Thermal 19543 | . . . . . 130 . . . . . . 108 . . . . . . . . 502 . 179 . 146 756 132 1868 4855 2920 1226 6721 Explosive 6521 | . . . . . 205 . 289 . 483 . 29 367 . 413 557 123 . . . . . 1657 405 . . 1563 . . . . . 430 Electromagnetic 2711 | . . . . . . . . . . . 465 . . . . 443 . . . . 100 . . . . 561 1142 . . . . . Impact . | . . . . . . . . . . . . . . . . . . . . . . . . . . . . . . . . . Slashing 2747 | . . . . . . 858 . 775 . 113 313 451 . . . . . 172 65 . . . . . . . . . . . . . Piercing 1996 | . . . . . . . 148 893 . . . . . 395 87 . . . 169 . 304 . . . . . . . . . . . Entropic 2863 | . . . . . . . . . . . . . . . . . . . . . . . . . . . . . . . . 2863 Highest Corruption 20 | . . . . . . . 2 2 2 2 4 14 14 16 16 1 . 4 . 8 11 11 11 11 11 1 20 . . 1 2 12 Average Corruption 7 | . . . . . . . 2 2 2 2 2 7 14 14 7 1 . 3 . 8 8 11 11 11 11 1 10 . . 1 1 5 Corruption Purged 17 | . . . . . . . . . . . . . . . 16 1 . . . . . . . . . . . . . . . . Effects 318 | . . . . . . . 4 8 3 1 2 29 2 26 68 . . 4 . . 19 17 13 8 14 . 83 . . . . 17 Message Errors 64 | . . . . . . . . 5 . . . 10 . 6 15 . . 1 . . 3 2 2 . 3 . 14 . . . . 3 Matter Fused 50 | . . . . . . . . . . . . 3 . 3 17 . . 3 . . 3 5 1 1 1 . 12 . . . . 1 Heat Flow Errors 27 | . . . . . . . 1 2 1 1 . 1 . 2 7 . . . . . . . 1 5 1 . 3 . . . . 2 Energy Discharges 26 | . . . . . . . 1 . 2 . . 3 . . 11 . . . . . 2 2 1 . 1 . 2 . . . . 1 Parts Rejected 5 | . . . . . . . . . . . . . . 1 . . . . . . . . . . 1 . 2 . . . . 1 Data Loss (minor) 36 | . . . . . . . 2 1 . . 2 1 1 2 11 . . . . . 3 2 1 . . . 8 . . . . 2 Data Loss (major) 8 | . . . . . . . . . . . . 1 . . 3 . . . . . . . 1 . . . 2 . . . . 1 Misfires 5 | . . . . . . . . . . . . 1 . . . . . . . . 1 . . . 1 . 2 . . . . . Alerts 5 | . . . . . . . . . . . . . 1 . 3 . . . . . . . 1 . . . . . . . . . Misdirections 43 | . . . . . . . . . . . . 1 . 7 . . . . . . 1 5 4 2 3 . 17 . . . . 3 Targeting Errors 45 | . . . . . . . . . . . . 8 . 5 1 . . . . . 5 1 . . 3 . 19 . . . . 3 Weapon Failures 4 | . . . . . . . . . . . . . . . . . . . . . 1 . 1 . . . 2 . . . . . Overload Shots 1 | . . . . . . . . . 1 . . . . . . . . . . . . . . . . . . . . . . . Overflow Damage 2756 | . . . . . . 30 43 . 40 3 24 30 . 65 103 3 . 7 . . 35 62 100 . 23 51 23 290 954 335 4 531 Projectiles 1110 | . . . . . . . . . . . . . . . . . . . . . 35 . . . 23 5 . 170 530 204 4 139 Explosions 1507 | . . . . . . . 43 . 40 . 24 30 . 12 103 3 . . . . . 62 100 . . 46 23 120 378 131 . 392 Melee 139 | . . . . . . 30 . . . 3 . . . 53 . . . 7 . . . . . . . . . . 46 . . . Knockbacks 9 | . . . . . . . . . . . . . . 8 . . . . . . . . . . . . . . 1 . . . Impact 1 | . . . . . . . . . . . . . . . . . . . . . . . . . . . . . 1 . . . Kinetic 8 | . . . . . . . . . . . . . . 8 . . . . . . . . . . . . . . . . . . Secondary . | . . . . . . . . . . . . . . . . . . . . . . . . . . . . . . . . . Self-Inflicted Damage 558 | . . . . . . . . . . . 137 14 . . . 158 . . . . . . . . . 30 108 68 43 . . . Shots 26 | . . . . . . . . . . . 2 . . . . 6 . . . . . . . . . 2 15 1 . . . . Rammed 6 | . 2 . . . 2 . . . . . . 1 . . . . . . . . . . . . . . . . 1 . . . Targets Rammed 6 | . 2 . . . 2 . . . . . . 1 . . . . . . . . . . . . . . . . 1 . . . Kicked . | . . . . . . . . . . . . . . . . . . . . . . . . . . . . . . . . . Crushed . | . . . . . . . . . . . . . . . . . . . . . . . . . . . . . . . . . Highest Temperature 485 | . 12 . . . . 11 123 258 203 122 7 446 . 236 270 33 155 . 52 5 197 6 181 485 199 199 280 198 . 348 376 228 Average Temperature 87 | . 7 . . . . 3 49 51 82 67 4 169 . 89 108 11 78 . 25 3 64 4 88 201 103 72 86 100 . 99 139 69 Received Heat Transfer 2642 | . 192 . . . 342 336 12 285 34 9 48 27 . 99 57 21 111 27 36 . 183 48 9 . 153 168 120 . 147 54 53 71 Effects 14 | . . . . . . . . . . . . 4 . . . . . . . . . . . 8 . . . . . . 2 . Shutdowns 6 | . . . . . . . . . . . . 3 . . . . . . . . . . . 3 . . . . . . . . Energy Bleed 3 | . . . . . . . . . . . . 1 . . . . . . . . . . . 1 . . . . . . 1 . Interference 2 | . . . . . . . . . . . . . . . . . . . . . . . . 1 . . . . . . 1 . Damage (major) 3 | . . . . . . . . . . . . . . . . . . . . . . . . 3 . . . . . . . . Siege Activations . | . . . . . . . . . . . . . . . . . . . . . . . . . . . . . . . . . Robots Corrupted 9 | . . . . . . . . . . . 1 . . . . 1 . . . . . . . . . . 7 . . . . . Combat Hostiles 8 | . . . . . . . . . . . . . . . . 1 . . . . . . . . . . 7 . . . . . Parts Fried 18 | . . . . . . . . . . . 1 . . . . 3 . . . . . . . . . 4 10 . . . . . Impact Corruptions 2 | . . . . . . . . . . . . . . . . . . . . . . . . . . . . . 2 . . . Robots Melted . | . . . . . . . . . . . . . . . . . . . . . . . . . . . . . . . . . Combat Hostiles . | . . . . . . . . . . . . . . . . . . . . . . . . . . . . . . . . . Parts Melted 14 | . . . . . . . . 2 . . . . . . . . . . . . 1 . . . 1 . . 1 3 1 2 3 Heat Transferred 12261 | . . . . . 333 . . . . . . 111 . . . . . . . . 444 . 222 . 148 925 250 1232 3180 1540 1036 2840 Parts Sabotaged 8 | . . . . . . . . . . . . . . . . . 6 . . . . . . . 2 . . . . . . . Parts Stolen 1 | . . . . . . . . . . . . . . . . 1 . . . . . . . . . . . . . . . . Parts Stripped . | . . . . . . . . . . . . . . . . . . . . . . . . . . . . . . . . . Power Chain Reactions 2 | . . . . . . . . . . . . . . . . 1 . . . . . . . . . . 1 . . . . . Missiles Intercepted . | . . . . . . . . . . . . . . . . . . . . . . . . . . . . . . . . . Alert | -11 -10 -10 -10 -9 -8 -7 -6 -6 -6 -6 -6 -5 -5 -5 -5 -5 -5 -4 -4 -4 -4 -4 -4 -4 -3 -3 -3 -2 -2 -2 -1 -1 ------- Run | Scr Mat Min Exi Min Mat Fac Fac Ext Cet Arc Hub Fac Was Fac Upp Upp War Pro Fac Was Fac Upp Upp Zhi Pro Res Tes Res Qua Sec Acc Com Peak Influence 853 | 5 179 11 . . 195 484 198 318 650 481 608 853 86 344 . . . . 138 37 140 . . . . 466 343 219 516 417 346 674 Initial 297 | . 3 11 . . . 44 . 63 175 260 168 297 56 60 . . . . . 22 25 . . . . 20 11 27 86 290 244 170 Average 160 | . 63 9 . . 55 181 48 151 441 419 206 340 70 125 . . . . 40 23 44 . . . . 166 169 105 183 222 217 556 Maximum Alert Level 3 | . . . . . . 2 . 1 2 2 2 3 . 1 . . . . . . . . . . . 2 1 1 2 2 1 2 Low Security (%) 66 | 100 100 100 . 100 100 54 100 66 3 . 46 7 100 77 . . . . 100 100 100 . . . . 72 61 76 71 40 42 . Level 1 24 | . . . . . . 40 . 33 29 39 47 80 . 22 . . . . . . . . . . . 5 38 23 8 50 57 3 Level 2 9 | . . . . . . 4 . . 66 60 5 . . . . . . . . . . . . . . 22 . . 19 9 . 96 Level 3 . | . . . . . . . . . . . . 10 . . . . . . . . . . . . . . . . . . . . Level 4 . | . . . . . . . . . . . . . . . . . . . . . . . . . . . . . . . . . Level 5 . | . . . . . . . . . . . . . . . . . . . . . . . . . . . . . . . . . High Security . | . . . . . . . . . . . . . . . . . . . . . . . . . . . . . . . . . Max Security . | . . . . . . . . . . . . . . . . . . . . . . . . . . . . . . . . . Squads Dispatched 49 | . 4 . . . 1 5 3 2 . . 2 6 . 3 . . . . 1 . 3 . . . 1 4 4 3 3 2 2 . Investigation 11 | . 1 . . . 1 2 2 1 . . 1 . . . . . . . . . . . . . . 1 1 . . 1 . . Extermination 15 | . . . . . . 1 1 . . . . 3 . 1 . . . . 1 . 1 . . . . 1 3 . 1 1 1 . Reinforcement 21 | . 3 . . . . 2 . 1 . . 1 2 . 2 . . . . . . 2 . . . . 2 . 3 2 . 1 . Assault 2 | . . . . . . . . . . . . 1 . . . . . . . . . . . . 1 . . . . . . . Garrison . | . . . . . . . . . . . . . . . . . . . . . . . . . . . . . . . . . Intercept . | . . . . . . . . . . . . . . . . . . . . . . . . . . . . . . . . . Construction Impeded 2 | . . . . . . . . . . . . . . . . . . . . . . . . . . 1 . . 1 . . . Haulers Reinforced 3 | . . . . . . 1 . . . . . . . 1 . . . . . . . . . . . . . 1 . . . . Stealth | -11 -10 -10 -10 -9 -8 -7 -6 -6 -6 -6 -6 -5 -5 -5 -5 -5 -5 -4 -4 -4 -4 -4 -4 -4 -3 -3 -3 -2 -2 -2 -1 -1 --------- Run | Scr Mat Min Exi Min Mat Fac Fac Ext Cet Arc Hub Fac Was Fac Upp Upp War Pro Fac Was Fac Upp Upp Zhi Pro Res Tes Res Qua Sec Acc Com Distress Signals 23 | . . . . . 1 1 . 2 2 . . 2 . . . . . . . . 1 . . . . 2 1 6 . 1 . 4 Communications Jammed 45 | . . . . . . . 12 3 . . . . . 30 . . . . . . . . . . . . . . . . . . Distress Signals 26 | . . . . . . . 12 3 . . . . . 11 . . . . . . . . . . . . . . . . . . Times Spotted 489 | . 22 . . . 12 46 29 22 15 3 9 29 6 22 11 7 15 5 13 6 22 12 3 . 14 36 36 19 18 17 7 33 Peak Tracking Total 14 | . 3 . . . 4 14 4 3 5 2 3 10 6 9 5 3 12 3 8 6 12 8 1 . 12 10 5 6 5 10 2 13 Tactical Retreats 62 | . . . . . 2 9 9 1 . . 1 6 . 5 1 . . 2 4 . 2 3 2 . 2 4 5 1 1 1 . 1 Traps | -11 -10 -10 -10 -9 -8 -7 -6 -6 -6 -6 -6 -5 -5 -5 -5 -5 -5 -4 -4 -4 -4 -4 -4 -4 -3 -3 -3 -2 -2 -2 -1 -1 ------- Run | Scr Mat Min Exi Min Mat Fac Fac Ext Cet Arc Hub Fac Was Fac Upp Upp War Pro Fac Was Fac Upp Upp Zhi Pro Res Tes Res Qua Sec Acc Com Traps Triggered 15 | . 1 . . . . . 1 3 . . . 2 . . . 1 . . 1 . . . . . . 2 1 . 1 2 . . Indirectly 1 | . . . . . . . . . . . . . . . . 1 . . . . . . . . . . . . . . . . Trap Hack Attempts 3 | . . . . . . . . 3 . . . . . . . . . . . . . . . . . . . . . . . . Triggered . | . . . . . . . . . . . . . . . . . . . . . . . . . . . . . . . . . Disarmed 1 | . . . . . . . . 1 . . . . . . . . . . . . . . . . . . . . . . . . Reprogrammed . | . . . . . . . . . . . . . . . . . . . . . . . . . . . . . . . . . Reused . | . . . . . . . . . . . . . . . . . . . . . . . . . . . . . . . . . Traps Extracted . | . . . . . . . . . . . . . . . . . . . . . . . . . . . . . . . . . Installed . | . . . . . . . . . . . . . . . . . . . . . . . . . . . . . . . . . Triggered 8 | . . . . . . . . . . . . . . . . 3 4 1 . . . . . . . . . . . . . . Machines | -11 -10 -10 -10 -9 -8 -7 -6 -6 -6 -6 -6 -5 -5 -5 -5 -5 -5 -4 -4 -4 -4 -4 -4 -4 -3 -3 -3 -2 -2 -2 -1 -1 ---------- Run | Scr Mat Min Exi Min Mat Fac Fac Ext Cet Arc Hub Fac Was Fac Upp Upp War Pro Fac Was Fac Upp Upp Zhi Pro Res Tes Res Qua Sec Acc Com Machines Disabled 49 | . . . . . 1 1 . 2 1 1 10 1 . . . 1 1 . . . . . . . . . 10 6 5 4 1 4 Max in Single Turn 7 | . . . . . 1 1 . . 1 . 7 1 . . . 1 1 . . . . . . . . . 1 2 1 2 1 1 Garrison Access 10 | . . . . . 1 1 2 . . . . . . . . . . . 1 . . . . . . 1 1 2 1 . . . Network Hub 1 | . . . . . . . . . . . 1 . . . . . . . . . . . . . . . . . . . . . Machines Sabotaged . | . . . . . . . . . . . . . . . . . . . . . . . . . . . . . . . . . Garrisons Compromised . | . . . . . . . . . . . . . . . . . . . . . . . . . . . . . . . . . Overloaded Fab Kills . | . . . . . . . . . . . . . . . . . . . . . . . . . . . . . . . . . Fab Network Shutdowns 1 | . . . . . . . . . . . . 1 . . . . . . . . . . . . . . . . . . . . Hacking | -11 -10 -10 -10 -9 -8 -7 -6 -6 -6 -6 -6 -5 -5 -5 -5 -5 -5 -4 -4 -4 -4 -4 -4 -4 -3 -3 -3 -2 -2 -2 -1 -1 --------- Run | Scr Mat Min Exi Min Mat Fac Fac Ext Cet Arc Hub Fac Was Fac Upp Upp War Pro Fac Was Fac Upp Upp Zhi Pro Res Tes Res Qua Sec Acc Com Machines Accessed 134 | . 5 . 1 . 4 17 17 14 1 1 5 6 . 5 1 2 2 . 6 . 5 . . 4 . 7 8 2 9 6 5 1 Terminals 82 | . 5 . . . 2 10 10 14 1 . 5 3 . 3 . . . . 2 . 3 . . . . 3 5 1 5 5 4 1 Fabricators 12 | . . . . . . 3 2 . . . . 1 . 2 . . . . 1 . . . . . . 1 1 . . . 1 . Repair Stations 9 | . . . . . . 1 1 . . . . 1 . . . . . . 2 . 2 . . . . 1 . . 1 . . . Recycling Units 1 | . . . . . . . . . . . . . . . . . . . . . . . . . . 1 . . . . . . Scanalyzers 10 | . . . . . 1 2 2 . . . . 1 . . . . . . . . . . . . . . 1 . 2 1 . . Garrison Access 9 | . . . . . 1 1 2 . . . . . . . . . . . 1 . . . . . . 1 1 1 1 . . . Total Hacks 561 | . 14 . 1 . 13 58 64 35 6 2 15 29 . 27 1 2 2 . 23 . 35 . . 17 . 59 35 8 52 42 20 1 Successful 342 | . 5 . 1 . 9 40 43 17 . 2 6 19 . 23 1 2 2 . 18 . 21 . . 17 . 45 17 5 24 16 8 1 Failed 218 | . 9 . . . 4 18 21 18 6 . 9 10 . 3 . . . . 5 . 14 . . . . 14 18 3 28 26 12 . Catastrophic 30 | . 2 . . . . 3 3 5 3 . . . . . . . . . . . 1 . . . . . 2 . 4 5 2 . Database Lockouts 1 | . . . . . . . . . . . . . . 1 . . . . . . . . . . . . . . . . . . Manual 275 | . 10 . 1 . 3 39 33 24 1 . 13 7 . 16 . . . . 12 . 19 . . . . 32 17 1 25 17 5 . Terminals 390 | . 14 . . . 4 42 41 35 6 . 15 17 . 19 . . . . 15 . 28 . . . . 44 21 5 31 37 15 1 Fabricators 52 | . . . . . . 8 9 . . . . 4 . 8 . . . . 4 . . . . . . 7 7 . . . 5 . Repair Stations 31 | . . . . . . 2 2 . . . . 1 . . . . . . 3 . 7 . . . . 5 . . 11 . . . Recycling Units 2 | . . . . . . . . . . . . . . . . . . . . . . . . . . 2 . . . . . . Scanalyzers 47 | . . . . . 8 5 8 . . . . 7 . . . . . . . . . . . . . . 6 . 8 5 . . Garrison Access 14 | . . . . . 1 1 4 . . . . . . . . . . . 1 . . . . . . 1 1 3 2 . . . Terminal Hacks 170 | . 4 . 1 . . 16 14 13 . 2 4 8 . 10 1 2 2 . 7 . 11 . . 17 . 23 6 4 8 11 5 1 Record 10 | . . . . . . . . . . 2 . . . . . 1 . . . . . . . 5 . . . . . 1 1 . Part Schematic 19 | . . . . . . 2 1 1 . . . 3 . 1 . . . . 1 . 2 . . 4 . 3 . . 1 . . . Robot Analysis 14 | . 2 . . . . . 1 1 . . . . . 2 . . . . 1 . 1 . . 4 . . 1 . . 1 . . Prototype ID Bank 9 | . . . . . . 2 . . . . . . . 1 . . . . . . 1 . . 4 . 1 . . . . . . Open Door 12 | . . . . . . . 1 6 . . . . . . 1 1 2 . . . . . . . . . . . . . 1 . Level Access Points 3 | . . . . . . . . . . . . . . . . . . . . . . . . . . . 1 . 1 1 . . Branch Access Points 7 | . . . . . . 1 1 . . . . . . 1 . . . . . . 1 . . . . 1 . 1 . . 1 . Emergency Access Points 2 | . . . . . . . . . . . . . . . . . . . 1 . . . . . . 1 . . . . . . Machine Index 2 | . . . . . . . . . . . . . . . . . . . . . 1 . . . . 1 . . . . . . Terminal Index 5 | . . . . . . 1 1 . . . . . . . . . . . 1 . . . . . . 1 . . . 1 . . Fabricator Index 4 | . . . . . . . . . . . . . . . . . . . 1 . . . . . . 1 1 . . . 1 . Repair Station Index 1 | . . . . . . . . . . . . . . . . . . . . . . . . . . 1 . . . . . . Scanalyzer Index 1 | . . . . . . 1 . . . . . . . . . . . . . . . . . . . . . . . . . . Garrison Index 2 | . . . . . . 1 . . . . . . . . . . . . . . . . . . . 1 . . . . . . Alert Level 4 | . . . . . . . 1 . . . . . . . . . . . . . . . . . . . . . 1 2 . . Unreport Threat 45 | . 2 . . . . 5 4 5 . . 2 5 . 3 . . . . . . 4 . . . . 5 2 2 2 3 1 . Locate Traps 4 | . . . . . . . 1 . . . . . . . . . . . . . . . . . . 2 . 1 . . . . Dispatch Records 1 | . . . . . . . . . . . . . . . . . . . . . . . . . . 1 . . . . . . Maintenance Status 1 | . . . . . . . . . . . . . . . . . . . . . . . . . . . . . 1 . . . Security Status 1 | . . . . . . . . . . . . . . . . . . . . . . . . . . 1 . . . . . . Surveillance Status 1 | . . . . . . . . . . . . . . . . . . . . . . . . . . 1 . . . . . . Patrol Status 1 | . . . . . . . . . . . . . . . . . . . . . . . . . . 1 . . . . . . Recall Investigation 2 | . . . . . . . 1 . . . . . . . . . . . . . 1 . . . . . . . . . . . Recall Extermination 2 | . . . . . . 1 . . . . . . . . . . . . 1 . . . . . . . . . . . . . Zone Layout 15 | . . . . . . 2 2 . . . 2 . . 2 . . . . 1 . . . . . . 1 1 . 2 2 . . EX-Prototype ID Bank 1 | . . . 1 . . . . . . . . . . . . . . . . . . . . . . . . . . . . . Disengage Seal 1 | . . . . . . . . . . . . . . . . . . . . . . . . . . . . . . . . 1 Fabricator Hacks 29 | . . . . . . 4 5 . . . . 3 . 4 . . . . 2 . . . . . . 5 3 . . . 3 . Load Schematic 11 | . . . . . . 1 2 . . . . 1 . 2 . . . . 1 . . . . . . 2 1 . . . 1 . Build 18 | . . . . . . 3 3 . . . . 2 . 2 . . . . 1 . . . . . . 3 2 . . . 2 . Repair Station Hacks 27 | . . . . . . 2 2 . . . . 1 . . . . . . 3 . 6 . . . . 5 . . 8 . . . Scan Component 12 | . . . . . . 1 1 . . . . . . . . . . . . . 3 . . . . 3 . . 4 . . . Repair 11 | . . . . . . 1 1 . . . . . . . . . . . . . 3 . . . . 2 . . 4 . . . Refit 4 | . . . . . . . . . . . . 1 . . . . . . 3 . . . . . . . . . . . . . Recycling Unit Hacks 2 | . . . . . . . . . . . . . . . . . . . . . . . . . . 2 . . . . . . Retrieve Components 2 | . . . . . . . . . . . . . . . . . . . . . . . . . . 2 . . . . . . Scanalyzer 38 | . . . . . 7 3 8 . . . . 7 . . . . . . . . . . . . . . 4 . 6 3 . . Insert Component 22 | . . . . . 4 3 4 . . . . 3 . . . . . . . . . . . . . . 2 . 4 2 . . Analyze 16 | . . . . . 3 . 4 . . . . 4 . . . . . . . . . . . . . . 2 . 2 1 . . Garrison Access Hacks 9 | . . . . . 1 1 2 . . . . . . . . . . . 1 . . . . . . 1 1 1 1 . . . Seal Access 9 | . . . . . 1 1 2 . . . . . . . . . . . 1 . . . . . . 1 1 1 1 . . . Unauthorized Hacks 67 | . 1 . . . 1 14 12 4 . . 2 . . 9 . . . . 5 . 4 . . . . 9 3 . 1 2 . . Terminals 53 | . 1 . . . 1 11 10 4 . . 2 . . 5 . . . . 3 . 4 . . . . 7 2 . 1 2 . . Track 17 | . . . . . . 3 2 1 . . 1 . . 2 . . . . 1 . 2 . . . . 2 1 . 1 1 . . Assimilate 5 | . . . . . . 1 2 . . . 1 . . . . . . . 1 . . . . . . . . . . . . . Botnet 18 | . . . . . 1 5 4 3 . . . . . 1 . . . . 1 . 1 . . . . 2 . . . . . . Disrupt 5 | . . . . . . . . . . . . . . 1 . . . . . . 1 . . . . 2 1 . . . . . Operators 7 | . 1 . . . . 2 1 . . . . . . 1 . . . . . . . . . . . 1 . . . 1 . . Search 1 | . . . . . . . 1 . . . . . . . . . . . . . . . . . . . . . . . . . Fabricators 14 | . . . . . . 3 2 . . . . . . 4 . . . . 2 . . . . . . 2 1 . . . . . Prioritize 4 | . . . . . . . . . . . . . . 2 . . . . 1 . . . . . . 1 . . . . . . Siphon 8 | . . . . . . 1 2 . . . . . . 2 . . . . 1 . . . . . . 1 1 . . . . . Download 2 | . . . . . . 2 . . . . . . . . . . . . . . . . . . . . . . . . . . Repair Stations . | . . . . . . . . . . . . . . . . . . . . . . . . . . . . . . . . . Recycling Units . | . . . . . . . . . . . . . . . . . . . . . . . . . . . . . . . . . Scanalyzers . | . . . . . . . . . . . . . . . . . . . . . . . . . . . . . . . . . Garrison Access . | . . . . . . . . . . . . . . . . . . . . . . . . . . . . . . . . . Data Cores Recovered 2 | . . . . . . . . . . . 1 . . . . . . . . . . . . . . 1 . . . . . . Used 1 | . . . . . . . . . . . . . . . . . . . . . . . . . . 1 . . . . . . Hacking Detections 96 | . 5 . . . 3 14 12 9 1 . 5 5 . 3 . . . . 3 . 5 . . . . 5 7 1 8 5 4 1 Full Trace Events 5 | . 1 . . . 1 . 1 . . . 1 . . . . . . . . . . . . . . . . . . 1 . . Feedback Events 2 | . . . . . . . . . . . 1 . . . . . . . . . . . . . . . . . . 1 . . Corruption 2 | . . . . . . . . . . . 1 . . . . . . . . . . . . . . . . . . 1 . . Feedback Blocked . | . . . . . . . . . . . . . . . . . . . . . . . . . . . . . . . . . Robot Schematics Acquired . | . . . . . . . . . . . . . . . . . . . . . . . . . . . . . . . . . Robots Built . | . . . . . . . . . . . . . . . . . . . . . . . . . . . . . . . . . Matter . | . . . . . . . . . . . . . . . . . . . . . . . . . . . . . . . . . Time . | . . . . . . . . . . . . . . . . . . . . . . . . . . . . . . . . . Total Robot Build Rating . | . . . . . . . . . . . . . . . . . . . . . . . . . . . . . . . . . Part Schematics Acquired 33 | . . . . . 3 4 5 1 . . . 5 . 1 . . . . 1 . 2 . . 4 . 3 2 . 1 1 . . Parts Built 22 | . . . . . . 3 3 . . . . 2 . 2 . . . . 2 . . . . . . 2 4 . . . 4 . Matter 3238 | . . . . . . 452 477 . . . . 234 . 351 . . . . 192 . . . . . . 592 384 . . . 556 . Time 1094 | . . . . . . 111 159 . . . . 39 . 234 . . . . 64 . . . . . . 267 128 . . . 92 . Total Part Build Rating 160 | . . . . . . 13 18 . . . . 14 . 14 . . . . 16 . . . . . . 17 32 . . . 36 . Parts Repaired 10 | . . . . . . 1 1 . . . . . . . . . . . . . 2 . . . . 2 . . 4 . . . Time 493 | . . . . . . 70 44 . . . . . . . . . . . . . 139 . . . . 44 . . 196 . . . Parts Recycled . | . . . . . . . . . . . . . . . . . . . . . . . . . . . . . . . . . Recycled Matter . | . . . . . . . . . . . . . . . . . . . . . . . . . . . . . . . . . Retrieved Matter . | . . . . . . . . . . . . . . . . . . . . . . . . . . . . . . . . . Retrieved Components . | . . . . . . . . . . . . . . . . . . . . . . . . . . . . . . . . . Parts Scanalyzed 14 | . . . . . 3 1 4 . . . . 2 . . . . . . . . . . . . . . 2 . 1 1 . . Part Schematics Acquired 12 | . . . . . 3 . 4 . . . . 2 . . . . . . . . . . . . . . 2 . . 1 . . Parts Damaged 1 | . . . . . . . 1 . . . . . . . . . . . . . . . . . . . . . . . . . Bothacking | -11 -10 -10 -10 -9 -8 -7 -6 -6 -6 -6 -6 -5 -5 -5 -5 -5 -5 -4 -4 -4 -4 -4 -4 -4 -3 -3 -3 -2 -2 -2 -1 -1 ------------ Run | Scr Mat Min Exi Min Mat Fac Fac Ext Cet Arc Hub Fac Was Fac Upp Upp War Pro Fac Was Fac Upp Upp Zhi Pro Res Tes Res Qua Sec Acc Com Used RIF Installer . | . . . . . . . . . . . . . . . . . . . . . . . . . . . . . . . . . Robots Hacked 2 | . . . . . . 1 . . . . . 1 . . . . . . . . . . . . . . . . . . . . Non-combat 2 | . . . . . . 1 . . . . . 1 . . . . . . . . . . . . . . . . . . . . Combat . | . . . . . . . . . . . . . . . . . . . . . . . . . . . . . . . . . Robot Hacks Applied 2 | . . . . . . 1 . . . . . 1 . . . . . . . . . . . . . . . . . . . . find_chute 2 | . . . . . . 1 . . . . . 1 . . . . . . . . . . . . . . . . . . . . Relay Couplers Released 1 | . . . . . . . . . . . . . . . . . . . . . . . . . . . . 1 . . . . Machine Destruction 1 | . . . . . . . . . . . . . . . . . . . . . . . . . . . . 1 . . . . Robots Rewired 19 | . . . . . . . . 15 . . . . . . . . 4 . . . . . . . . . . . . . . . Allies Hacked 1 | . . . . . . . . . 1 . . . . . . . . . . . . . . . . . . . . . . . Hacks Repelled . | . . . . . . . . . . . . . . . . . . . . . . . . . . . . . . . . . Allies | -11 -10 -10 -10 -9 -8 -7 -6 -6 -6 -6 -6 -5 -5 -5 -5 -5 -5 -4 -4 -4 -4 -4 -4 -4 -3 -3 -3 -2 -2 -2 -1 -1 -------- Run | Scr Mat Min Exi Min Mat Fac Fac Ext Cet Arc Hub Fac Was Fac Upp Upp War Pro Fac Was Fac Upp Upp Zhi Pro Res Tes Res Qua Sec Acc Com Total Allies 39 | . . 3 . . . 1 1 24 5 . . . . . . . 4 . 1 . . . . . . . . . . . . . Largest Group 20 | . . 3 3 . . 1 1 19 20 7 6 . . . . . 4 . 1 . . . . . . . . . . . . . Highest-Rated Group 995 | . . 73 73 . . 10 26 654 995 632 476 . . . . . 204 . 10 . . . . . . . . . . . . . Highest-Rated Ally 156 | . . 31 31 . . 10 26 156 156 149 94 . . . . . 60 . 10 . . . . . . . . . . . . . Total Orders 6 | . . . . . . . . . 4 . . . . . . . . . 2 . . . . . . . . . . . . . STAY 3 | . . . . . . . . . 2 . . . . . . . . . 1 . . . . . . . . . . . . . FOLLOW 3 | . . . . . . . . . 2 . . . . . . . . . 1 . . . . . . . . . . . . . Ally Attacks 252 | . . . . . . . . 117 84 22 26 . . . . . 3 . . . . . . . . . . . . . . . Total Damage 6878 | . . . . . . . . 2391 2721 813 904 . . . . . 49 . . . . . . . . . . . . . . . Kills 52 | . . . . . . . . 17 22 4 9 . . . . . . . . . . . . . . . . . . . . . Allies Corrupted . | . . . . . . . . . . . . . . . . . . . . . . . . . . . . . . . . . Allies Melted . | . . . . . . . . . . . . . . . . . . . . . . . . . . . . . . . . . Intel | -11 -10 -10 -10 -9 -8 -7 -6 -6 -6 -6 -6 -5 -5 -5 -5 -5 -5 -4 -4 -4 -4 -4 -4 -4 -3 -3 -3 -2 -2 -2 -1 -1 ------- Run | Scr Mat Min Exi Min Mat Fac Fac Ext Cet Arc Hub Fac Was Fac Upp Upp War Pro Fac Was Fac Upp Upp Zhi Pro Res Tes Res Qua Sec Acc Com Robot Analysis Total 14 | . 2 . . . . . 1 1 . . . . . 2 . . . . 1 . 1 . . 4 . . 1 . . 1 . . Derelict Logs Recovered 4 | . . . . . . . . . . . . . . . . 1 . . . . . 2 1 . . . . . . . . . Drone Launches . | . . . . . . . . . . . . . . . . . . . . . . . . . . . . . . . . . Drone Recoveries . | . . . . . . . . . . . . . . . . . . . . . . . . . . . . . . . . . Exploration | -11 -10 -10 -10 -9 -8 -7 -6 -6 -6 -6 -6 -5 -5 -5 -5 -5 -5 -4 -4 -4 -4 -4 -4 -4 -3 -3 -3 -2 -2 -2 -1 -1 ------------- Run | Scr Mat Min Exi Min Mat Fac Fac Ext Cet Arc Hub Fac Was Fac Upp Upp War Pro Fac Was Fac Upp Upp Zhi Pro Res Tes Res Qua Sec Acc Com Turns Passed 19056 | 96 967 442 460 18 529 1063 1110 923 514 103 222 923 33 381 2808 178 396 403 507 48 424 261 226 134 176 910 1600 1103 774 372 526 426 Spaces Moved 16264 | 48 447 246 251 11 200 1333 1556 940 327 97 246 807 86 598 367 300 858 200 475 75 374 381 335 159 214 783 1158 1364 671 485 503 369 Core 21 | 2 . . . . . . . . . . . . . . . . 1 4 14 . . . . . . . . . . . . . Treads 1295 | 46 447 246 251 11 200 . . . . . . . . . . . . 94 . . . . . . . . . . . . . . Legs 116 | . . . . . . . . . . . . . . . . . . . . . . . . . . . 116 . . . . . Wheels 122 | . . . . . . . . . . . . 122 . . . . . . . . . . . . . . . . . . . . Hover 7352 | . . . . . . . . . . . . 136 . . . . . . 461 75 374 381 335 159 214 783 1042 1364 671 485 503 369 Flight 7358 | . . . . . . 1333 1556 940 327 97 246 549 86 598 367 300 857 102 . . . . . . . . . . . . . . Fastest Speed 34 | 50 160 180 180 180 172 50 50 50 50 50 50 37 37 37 37 34 34 160 53 53 50 54 54 53 53 60 43 56 60 60 46 46 Average Speed 66 | 155 172 180 180 180 178 50 50 50 50 50 50 70 37 37 38 38 35 187 81 53 52 54 55 54 54 65 88 58 60 60 58 49 Slowest Speed 600 | 160 180 180 180 180 200 50 50 50 50 50 50 300 37 120 120 200 600 600 600 53 65 54 60 56 60 128 270 60 60 60 143 136 Overloaded Moves . | . . . . . . . . . . . . . . . . . . . . . . . . . . . . . . . . . Propulsion Burnouts . | . . . . . . . . . . . . . . . . . . . . . . . . . . . . . . . . . Robots Hopped 79 | . . . . . . 15 28 6 . . . 14 . 12 2 2 . . . . . . . . . . . . . . . . Cave-ins Triggered . | . . . . . . . . . . . . . . . . . . . . . . . . . . . . . . . . . Exploration Rate (%) 48 | 4 68 58 60 7 24 41 40 88 82 88 31 20 80 25 53 49 93 48 17 80 10 63 63 61 53 23 76 36 70 26 14 34 Regions Visited 32 Branch Regions 19 Pre-discovered Areas 3 | . . . . . . . . . . . . . . . . . . . . . . . . 3 . . . . . . . . Known Exits Taken 8 | . . . . . . . 1 . . . . . . 1 . . . . . . 1 . . . . 1 1 1 . 1 1 . Unknown Exits Taken 20 | 1 1 1 1 1 1 1 . 1 1 1 1 . . . 1 1 1 1 . . . 1 1 1 1 . . . 1 . . . Scrap Searched 14 | . . . . 1 . . . . . . . . . . . 1 . 3 . . . 4 2 . 3 . . . . . . . Spaces Dug 242 | . . . . . . 35 30 . . . 1 6 . 9 1 . . 3 10 . 6 . 2 . 6 15 16 28 40 26 8 . Terrain Destroyed 1251 | . . . . . 5 35 43 . 67 . 210 61 . 29 22 14 . 3 10 . 8 132 31 . 24 89 32 69 135 95 17 120 Melee 101 | . . . . . . 35 30 . . . 1 6 . 9 1 . . 3 10 . 6 . . . . . . . . . . . Projectile 125 | . . . . . . . . . . . . 15 . . . . . . . . 2 . 3 . 24 23 27 6 7 8 8 2 AOE 1025 | . . . . . 5 . 13 . 67 . 209 40 . 20 21 14 . . . . . 132 28 . . 66 5 63 128 87 9 118 Terrain Rammed . | . . . . . . . . . . . . . . . . . . . . . . . . . . . . . . . . . Walls Destroyed . | . . . . . . . . . . . . . . . . . . . . . . . . . . . . . . . . . Machines Disabled . | . . . . . . . . . . . . . . . . . . . . . . . . . . . . . . . . . Actions | -11 -10 -10 -10 -9 -8 -7 -6 -6 -6 -6 -6 -5 -5 -5 -5 -5 -5 -4 -4 -4 -4 -4 -4 -4 -3 -3 -3 -2 -2 -2 -1 -1 --------- Run | Scr Mat Min Exi Min Mat Fac Fac Ext Cet Arc Hub Fac Was Fac Upp Upp War Pro Fac Was Fac Upp Upp Zhi Pro Res Tes Res Qua Sec Acc Com Total 23201 | 63 579 246 259 10 287 1634 1799 1284 674 149 328 1050 86 695 3024 346 946 221 562 81 541 427 360 204 244 1110 1577 1656 996 529 697 537 Wait 5132 | 2 69 1 . . 23 156 181 215 306 52 67 99 . 49 2639 11 34 . 25 5 96 9 2 19 4 207 187 221 272 3 109 69 Move 16082 | 47 446 245 250 10 199 1304 1500 928 326 96 245 782 85 573 362 295 857 199 475 74 373 380 334 158 213 782 1157 1363 670 484 502 368 Hop 72 | . . . . . . 13 27 5 . . . 11 . 12 2 2 . . . . . . . . . . . . . . . . Pick Up 203 | 6 14 . 6 . 3 36 14 4 13 . . 12 1 . 2 2 3 1 7 . 6 3 2 3 . 10 16 13 8 3 10 5 Fast Attach 204 | 6 2 . . . 7 5 6 2 1 . 2 19 . 6 2 7 14 4 13 1 9 6 2 9 4 13 42 5 3 1 9 4 Attach 133 | . 1 . . . 4 7 6 . 2 . . 10 . 6 . 6 2 5 3 . 6 6 2 1 . 15 16 4 8 2 7 14 Detach 93 | . . . . . 1 3 4 . 3 . 1 2 . 7 2 7 4 2 6 . 2 3 1 . . 13 15 1 2 3 3 8 Swap 120 | . 1 . 2 . 2 12 4 15 7 . 2 3 . 5 3 1 3 . 3 1 5 1 1 4 . 4 9 14 2 3 5 8 Drop 257 | . 8 . 1 . 2 36 19 7 9 . 1 19 . 5 7 2 13 2 12 . 5 9 4 10 . 5 30 23 5 2 15 6 Fire 586 | 2 36 . . . 44 . 3 . 6 . 2 63 . 14 3 12 15 . . . 24 10 12 . 23 61 105 12 25 22 37 55 Melee 263 | . . . . . . 62 35 77 1 1 8 16 . 18 2 1 1 8 18 . 15 . . . . . . . . . . . Ram 2 | . . . . . . . . . . . . 1 . . . . . . . . . . . . . . . . 1 . . . Kick . | . . . . . . . . . . . . . . . . . . . . . . . . . . . . . . . . . Crush 4 | . 2 . . . 2 . . . . . . . . . . . . . . . . . . . . . . . . . . . Escape Stasis 47 | . . . . . . . . 28 . . . 13 . . . . . . . . . . . . . . . . . 6 . . Rewire . | . . . . . . . . . . . . . . . . . . . . . . . . . . . . . . . . . Trap 3 | . . . . . . . . 3 . . . . . . . . . . . . . . . . . . . . . . . . Miscellaneous . | . . . . . . . . . . . . . . . . . . . . . . . . . . . . . . . . . Route ------- -11/Scrapyard -10/Materials (discovered 4 exits: [*Mat x3] / [*Min]) -10/Mines -10/Exiles -9/Mines -8/Materials -7/Factory (discovered 4 exits: *Fac x2 / Low x2) -6/Factory (discovered 5 exits: *Fac / *Low x2 / *Ext x2) -6/Extension (discovered 2 exits: *Fac / *Cet) -6/Cetus (discovered 2 exits: *Fac / *Arc) -6/Archives (discovered 2 exits: *Hub x2) -6/Hub_04(d) -5/Factory -5/Waste -5/Factory (discovered 3 exits: *Fac / *Upp x2) -5/Upper Caves -5/Upper Caves -5/Warlord -4/Proximity Caves -4/Factory -4/Waste -4/Factory (discovered 2 exits: *Upp x2) -4/Upper Caves -4/Upper Caves -4/Zhirov -3/Proximity Caves -3/Research (discovered 4 exits: *Res / Arm / *Tes x2) -3/Testing -2/Research (discovered 2 exits: *Qua x2) -2/Quarantine (discovered 2 exits: *Acc / *Sec) -2/Section 7 -1/Access -1/Command To Epsilon Eridani History --------- Turn | Location | Event 18 | -11/Scrapyard | Discovered new exit (range 16) 97 | -11/Scrapyard | Entered Materials 320 | -10/Materials | Build established: Mutant 325 | -10/Materials | Discovered new exit (range 10) 445 | -10/Materials | Discovered new exit (range 15) 546 | -10/Materials | Discovered new exit (range 13) 836 | -10/Materials | Discovered new exit (range 15) 1064 | -10/Materials | Entered Mines 1379 | -10/Mines | Received a Mining Laser from a helpful Derelict 1498 | -10/Mines | Deemed a non-threat by the Exiles lab entrance 1498 | -10/Mines | Discovered new exit (range 5) 1506 | -10/Mines | Entered Exiles 1506 | -10/Exiles | Accompanied by 3 allies 1536 | -10/Exiles | Led the pair of lost Derelicts to a safe place 1550 | -10/Exiles | Met 8R-AWN 1582 | -10/Exiles | Met EX-HEX 1629 | -10/Exiles | Met EX-BIN 1650 | -10/Exiles | Aligned with FarCom system 1652 | -10/Exiles | Given EX-Vault access code 1701 | -10/Exiles | Opened EX-Vault 1715 | -10/Exiles | Found Cloak of Protection 1719 | -10/Exiles | Found Flying Fortress v7 1729 | -10/Exiles | Found Supersonic Drone Bay 1766 | -10/Exiles | Warned to stay clear of 0b10 Research branches 1822 | -10/Exiles | Met EX-DEC 1943 | -10/Exiles | Discovered new exit (range 11) 1966 | -10/Exiles | Stole three prototypes: Cloak of Protection, Flying Fortress v7, Supersonic Drone Bay 1966 | -10/Exiles | Entered Mines 1966 | -9/Mines | Discovered new exit (range 5) 1984 | -9/Mines | Entered Materials 1984 | -8/Materials | Evolved 4 slots: Propulsion x2, Utility x2 2017 | -8/Materials | Build established: Hauler-Mutant 2352 | -8/Materials | Lost 4 parts (1p2n1w) 2493 | -8/Materials | Discovered new exit (range 8) 2513 | -8/Materials | Entered Factory 2513 | -7/Factory | Evolved 2 slots: Utility x2 2515 | -7/Factory | FarCom data flow suspended 2827 | -7/Factory | Build established: Hacker-Mutant 3079 | -7/Factory | Fabricated Adv. Armor Integrity Analyzer (x1) 3093 | -7/Factory | Repaired Enh. Nuclear Core 3193 | -7/Factory | Discovered new exit (range 4) 3282 | -7/Factory | Discovered new exit (range 14) 3417 | -7/Factory | Fabricated Hacking Suite (x1) 3455 | -7/Factory | Fabricated Hacking Suite (x1) 3474 | -7/Factory | Identified exit to Lower Caves 3576 | -7/Factory | Entered another Factory area 3576 | -6/Factory | Evolved 2 slots: Power x1, Utility x1 3601 | -6/Factory | Identified exit to Lower Caves 3601 | -6/Factory | Identified exit to Extension 3612 | -6/Factory | Discovered new exit (range 3) 3728 | -6/Factory | Repaired Chainsword 4141 | -6/Factory | Fabricated Adv. Hacking Suite? 4180 | -6/Factory | Fabricated Adv. Hacking Suite (x1) 4276 | -6/Factory | Fabricated Adv. Hacking Suite? 4610 | -6/Factory | Build established: Infiltrator-Mutant 4686 | -6/Factory | Entered Extension 4805 | -6/Extension | Rescued a captive Derelict 4806 | -6/Extension | Rescued a captive Derelict 4904 | -6/Extension | Rescued a captive Derelict 4904 | -6/Extension | Rescued a captive Derelict 4912 | -6/Extension | Rescued a captive Derelict 4913 | -6/Extension | Rescued a captive Derelict 4935 | -6/Extension | Rescued a captive Derelict 5198 | -6/Extension | Build established: Hacker-Mutant 5210 | -6/Extension | Spotted B-75 Beast 5224 | -6/Extension | Spotted B-75 Beast 5236 | -6/Extension | Destroyed B-75 Beast 5245 | -6/Extension | Destroyed B-75 Beast 5442 | -6/Extension | Rescued a captive Derelict 5448 | -6/Extension | Rescued a captive Derelict 5452 | -6/Extension | Rescued A7 5565 | -6/Extension | Discovered new exit (range 10) 5565 | -6/Extension | Discovered new exit (range 6) 5609 | -6/Extension | Entered Cetus 5609 | -6/Cetus | Accompanied by 18 allies (A7) 5612 | -6/Cetus | Build established: Commander-Mutant 5614 | -6/Cetus | Acquired a Cetus Manufacturing Module code from A7 5624 | -6/Cetus | Spotted Cetus Guard 5624 | -6/Cetus | Spotted Cetus Guard 5626 | -6/Cetus | Spotted Cetus Guard 5627 | -6/Cetus | Allies destroyed Cetus Guard 5628 | -6/Cetus | Spotted Cetus Guard 5633 | -6/Cetus | Allies destroyed Cetus Guard 5639 | -6/Cetus | Allies destroyed Cetus Guard 5641 | -6/Cetus | Allies destroyed Cetus Guard 5688 | -6/Cetus | Started Cetus Manufacturing Module 5702 | -6/Cetus | Discovered new exit (range 21) 5713 | -6/Cetus | Manufactured an Enhanced Grunt 5738 | -6/Cetus | Manufactured an Enhanced Grunt 5763 | -6/Cetus | Manufactured an Enhanced Grunt 5788 | -6/Cetus | Manufactured an Enhanced Grunt 5813 | -6/Cetus | Manufactured an Enhanced Grunt 5870 | -6/Cetus | Escorted A7 to Cetus Mainframe 5987 | -6/Cetus | Spotted Cetus Guard 5987 | -6/Cetus | Spotted Cetus Guard 5990 | -6/Cetus | Spotted Cetus Guard 5991 | -6/Cetus | Spotted Cetus Guard 6000 | -6/Cetus | Allies destroyed Cetus Guard 6002 | -6/Cetus | Allies destroyed Cetus Guard 6006 | -6/Cetus | Allies destroyed Cetus Guard 6013 | -6/Cetus | Allies destroyed Cetus Guard 6035 | -6/Cetus | Discovered new exit (range 21) 6041 | -6/Cetus | Met Revision 17 6123 | -6/Cetus | Entered Archives 6123 | -6/Archives | Accompanied by 7 allies (A7) 6128 | -6/Archives | Received a hacking code to weaken MAIN.C 6179 | -6/Archives | Unable to access archive contents 6182 | -6/Archives | Discovered new exit (range 22) 6184 | -6/Archives | Discovered new exit (range 22) 6187 | -6/Archives | Unable to access archive contents 6194 | -6/Archives | Unable to access archive contents 6226 | -6/Archives | Entered Hub_04(d) 6226 | -6/Hub_04(d) | Accompanied by 6 allies 6282 | -6/Hub_04(d) | Discovered new exit (range 2) 6435 | -6/Hub_04(d) | Network Hub disabled 6448 | -6/Hub_04(d) | Entered Factory 6448 | -5/Factory | Evolved 2 slots: Utility x2 6496 | -5/Factory | Spotted B-75 Beast 6626 | -5/Factory | Build established: Hacker-Mutant 6875 | -5/Factory | Lost 5 parts (3n2u) 7254 | -5/Factory | Local fabrication network quarantined 7264 | -5/Factory | Fabricated Field Propulsion Array? 7289 | -5/Factory | System corruption reached 10% 7348 | -5/Factory | First assault squad dispatched 7371 | -5/Factory | Sucked down chute 7371 | -5/Factory | Entered Waste 7379 | -5/Waste | Spotted C-40 Crusher 7384 | -5/Waste | Spotted C-40 Crusher 7386 | -5/Waste | Spotted C-40 Crusher 7387 | -5/Waste | Spotted C-40 Crusher 7390 | -5/Waste | Spotted C-40 Crusher 7390 | -5/Waste | Spotted C-40 Crusher 7395 | -5/Waste | Discovered new exit (range 22) 7404 | -5/Waste | Entered Factory 7515 | -5/Factory | Fabricated Enh. Force Lance? 7572 | -5/Factory | Central database locked down 7597 | -5/Factory | Fabricated Adv. Hacking Suite? 7711 | -5/Factory | Identified exit to Upper Caves 7719 | -5/Factory | Discovered new exit (range 21) 7785 | -5/Factory | Entered Upper Caves 10579 | -5/Upper Caves | Core integrity fell below 50% 10589 | -5/Upper Caves | Discovered new exit (range 11) 10593 | -5/Upper Caves | Entered another Upper Caves area 10593 | -5/Upper Caves | Spotted N2-7JV(f) 10593 | -5/Upper Caves | Spotted YG-E7N(f) 10594 | -5/Upper Caves | Encountered a Master Thief 10594 | -5/Upper Caves | Encountered a Master Thief 10600 | -5/Upper Caves | Destroyed YG-E7N(f) 10619 | -5/Upper Caves | Supersonic Drone Bay stolen by Master Thief 10621 | -5/Upper Caves | Destroyed N2-7JV(f) 10657 | -5/Upper Caves | Learned Factory garrison access intel 10676 | -5/Upper Caves | Found Alien Artifact 10757 | -5/Upper Caves | Discovered new exit (range 14) 10771 | -5/Upper Caves | Entered Warlord 10819 | -5/Warlord | Found Prototype Device 10828 | -5/Warlord | Received a Watcher feed algorithm from an ecstatic Tinkerer 10962 | -5/Warlord | Met Warlord 10973 | -5/Warlord | Found Prototype Processor 10973 | -5/Warlord | Identified Spectral Analyzer 10984 | -5/Warlord | Found Prototype Reactor 10987 | -5/Warlord | Warlord's base attacked by MAIN.C 11052 | -5/Warlord | Found Prototype Launcher 11052 | -5/Warlord | Identified Vortex Catalyst Activator 11105 | -5/Warlord | Opened side exit 11162 | -5/Warlord | Discovered new exit (range 11) 11167 | -5/Warlord | Entered Proximity Caves 11406 | -4/Proximity Caves | Spotted B-86 Titan 11481 | -4/Proximity Caves | Lost 4 parts (1p1n2u) 11532 | -4/Proximity Caves | Discovered new exit (range 15) 11565 | -4/Proximity Caves | Attracted the attention of an 0b10 checkpoint 11570 | -4/Proximity Caves | Entered Factory 11570 | -4/Factory | Evolved 2 slots: Propulsion x2 11571 | -4/Factory | Loaded intel: 4 garrison access locations 11964 | -4/Factory | Spotted B-86 Titan 11994 | -4/Factory | Fabricated Cmb. Antigrav System (x2) 12077 | -4/Factory | Manually triggered Chute Trap 12077 | -4/Factory | Sucked down chute 12077 | -4/Factory | Entered Waste 12078 | -4/Waste | Spotted C-40 Crusher 12083 | -4/Waste | Spotted C-40 Crusher 12084 | -4/Waste | Spotted C-40 Crusher 12088 | -4/Waste | Spotted C-40 Crusher 12092 | -4/Waste | EMP discharged 12108 | -4/Waste | Spotted C-40 Crusher 12109 | -4/Waste | Spotted C-40 Crusher 12112 | -4/Waste | Discovered new exit (range 23) 12125 | -4/Waste | Entered Factory 12200 | -4/Factory | Repaired Broken Enh. Nova Cannon 12255 | -4/Factory | Repaired Centrium Medium Armor Plating 12295 | -4/Factory | Lost 6 parts (1p2n1u2w) 12495 | -4/Factory | System corruption reached 10% 12527 | -4/Factory | Identified exit to Upper Caves 12549 | -4/Factory | Entered Upper Caves 12651 | -4/Upper Caves | Destroyed 9 combat bots 12777 | -4/Upper Caves | Learned 12 Research zone layouts 12804 | -4/Upper Caves | Discovered new exit (range 9) 12810 | -4/Upper Caves | Entered another Upper Caves area 12879 | -4/Upper Caves | Attracted the attention of an 0b10 checkpoint 13006 | -4/Upper Caves | Discovered new exit (range 14) 13036 | -4/Upper Caves | Entered Zhirov 13037 | -4/Zhirov | Discovered new exit (range 3) 13048 | -4/Zhirov | Met Zhirov 13059 | -4/Zhirov | Learned location of Quarantine (-2) 13059 | -4/Zhirov | Learned location of Testing (-3) 13059 | -4/Zhirov | Learned location of Command (-1) 13066 | -4/Zhirov | Zhirov requested help retrieving the SGEMP Prototype 13075 | -4/Zhirov | Found Alien Artifact 13075 | -4/Zhirov | Identified Integrated Reactor 13075 | -4/Zhirov | Installed Integrated Reactor, increased core energy generation (+10) 13085 | -4/Zhirov | Found Alien Artifact 13170 | -4/Zhirov | Entered Proximity Caves 13295 | -3/Proximity Caves | Attracted the attention of an 0b10 outpost 13304 | -3/Proximity Caves | Discovered new exit (range 14) 13346 | -3/Proximity Caves | Entered Research 13346 | -3/Research | Evolved 2 slots: Utility x2 13347 | -3/Research | Identified exit to Armory 13347 | -3/Research | Identified exit to Testing 13350 | -3/Research | Identified Vortex Chain Reactor 13357 | -3/Research | Lost 5 parts (1p1n1u2w) 13608 | -3/Research | Found Gamma Bomb Array 13610 | -3/Research | Found Gamma Bomb Array 13656 | -3/Research | Spotted B-86 Titan 13723 | -3/Research | Discovered new exit (range 22) 13832 | -3/Research | Repaired Cmb. Antigrav System 13855 | -3/Research | Repaired Cmb. Antigrav System 13958 | -3/Research | Fabricated Enh. Nova Cannon? 14053 | -3/Research | Lost 3 parts (1p2w) 14119 | -3/Research | Fabricated Com. HERF Cannon (x1) 14183 | -3/Research | Lost 3 parts (2p1w) 14256 | -3/Research | Entered Testing 14285 | -3/Testing | Lost 3 parts (2n1u) 14469 | -3/Testing | Identified exit to Research 14474 | -3/Testing | Found EM Dispersion Field 14789 | -3/Testing | Core integrity fell below 50% 14859 | -3/Testing | Lost 7 parts (1p2n1u3w) 14930 | -3/Testing | Spotted Striker 14930 | -3/Testing | Spotted Striker 15052 | -3/Testing | System corruption reached 10% 15293 | -3/Testing | Core integrity fell below 20% 15320 | -3/Testing | Lost 6 parts (2p3n1u) 15404 | -3/Testing | Fabricated Cmb. Antigrav System (x2) 15518 | -3/Testing | Fabricated Cmb. Antigrav System (x2) 15638 | -3/Testing | Found Prototype Hackware 15638 | -3/Testing | Identified Ghost Barrier 15734 | -3/Testing | Found Prototype Device 15734 | -3/Testing | Identified Exp. Hardlight Generator 15753 | -3/Testing | Found Prototype Energy Cannon 15753 | -3/Testing | Identified Potential Cannon 15756 | -3/Testing | Found Prototype Energy Cannon 15756 | -3/Testing | Identified Imp. Potential Cannon 15856 | -3/Testing | Entered Research 15856 | -2/Research | Warlord forces began assault on 0b10 15856 | -2/Research | Evolved 2 slots: Power x1, Utility x1 15895 | -2/Research | Identified exit to Quarantine 15901 | -2/Research | Spotted B-90 Cyclops 15938 | -2/Research | Build established: Wizard-Mutant 15966 | -2/Research | Research machine network offline 16271 | -2/Research | Met up with Warlord 16307 | -2/Research | Borebot progress halted 16308 | -2/Research | Spotted Striker 16314 | -2/Research | Borebot progress halted 16318 | -2/Research | Destroyed WU-2SI(K) 16323 | -2/Research | Spotted Executioner 16344 | -2/Research | Borebot progress halted 16380 | -2/Research | Spotted Executioner 16393 | -2/Research | Spotted Striker 16396 | -2/Research | Destroyed Striker 16625 | -2/Research | Build established: Hacker-Mutant 16911 | -2/Research | Spotted Striker 16915 | -2/Research | Warlord invited to help at Command 16959 | -2/Research | Entered Quarantine 17023 | -2/Quarantine | Repaired Centrium Medium Armor Plating 17078 | -2/Quarantine | Repaired Centrium Light Armor Plating 17134 | -2/Quarantine | Repaired Centrium Light Armor Plating 17169 | -2/Quarantine | Repaired Cmb. Antigrav System 17199 | -2/Quarantine | Identified Dimensional Node Initializer 17205 | -2/Quarantine | Identified Transdimensional Reconstructor 17272 | -2/Quarantine | Identified exit to Access 17352 | -2/Quarantine | Found Alien Artifact 17355 | -2/Quarantine | Found Alien Artifact 17657 | -2/Quarantine | Identified Terrabomb (x2) 17679 | -2/Quarantine | Spotted Fortress 17727 | -2/Quarantine | Discovered new exit (range 6) 17733 | -2/Quarantine | Entered Section 7 17751 | -2/Section 7 | Spotted S7 Guard 17779 | -2/Section 7 | Destroyed S7 Guard 17788 | -2/Section 7 | Found Alien Artifact 17815 | -2/Section 7 | Identified Integrated Singularity Reactor 17866 | -2/Section 7 | Spotted B-90 Cyclops 17920 | -2/Section 7 | Spotted B-90 Cyclops 17973 | -2/Section 7 | Destroyed B-90 Cyclops 18105 | -2/Section 7 | Entered Access 18105 | -1/Access | Evolved 2 slots: Utility x2 18161 | -1/Access | Installed Integrated Singularity Reactor, increased core energy generation (+20) 18259 | -1/Access | Spotted B-99 Colossus 18315 | -1/Access | Identified exit to Command 18504 | -1/Access | Fabricated Cmb. Linear Gravjet (x2) 18550 | -1/Access | Fabricated Cmb. Linear Gravjet (x2) 18612 | -1/Access | Build established: Wizard-Mutant 18631 | -1/Access | Entered Command 18661 | -1/Command | Disengaged cave seal 18661 | -1/Command | Derelicts emerged from the dark tunnel 18661 | -1/Command | Welcomed Warlord to Command 18745 | -1/Command | Spotted M Guard 18745 | -1/Command | Spotted M Guard 18745 | -1/Command | Spotted Combat Programmer 18745 | -1/Command | Spotted Combat Programmer 18749 | -1/Command | Warlord commented on Warlord statues 18750 | -1/Command | Destroyed Combat Programmer 18752 | -1/Command | Destroyed Combat Programmer 18781 | -1/Command | All MAIN.C guards destroyed 18843 | -1/Command | Met MAIN.C 18844 | -1/Command | 0b10 Conduit disabled 18852 | -1/Command | Warlord shut down involuntarily 18869 | -1/Command | MAIN.C activated Command garrisons 18922 | -1/Command | Used Terrabomb 19011 | -1/Command | System corruption reached 10% 19034 | -1/Command | Build established: Generator-Mutant 19045 | -1/Command | Discovered new exit (range 20) 19047 | -1/Command | Core integrity fell below 50% 19057 | *** | Escaped! Last Messages --------------- 19009_ C-30 ARC bursts open, deploying its payload. 19009_ G-73 Enforcer unfolds itself. 19009_ Lgt. Particle Reactor destroyed. 19010_ Penetrated by Slug. 19010_ Slug penetrates Wall. 19012_ Penetrated by Slug. 19012_ Slug penetrates Wall. 19013_ Centrium Medium Armor Plating destroyed. 19016_ Knocked back. 19026_ System corrupted: Substantial component data lost. 19026_ Acquired Impulse Thruster Array. 19028_ Terminal disabled. 19032_ Critical hit. 19032_ Cmb. Linear Gravjet destroyed. 19039_ Knocked back. 19041_ System corrupted: Matter fused (-6). 19045_ EXIT=FOUND 19053_ Lgt. Quantum Reactor destroyed. 19054_ Penetrated by Slug. 19057_ Knocked back. Map ----- +----------------------------------------------------+ | ???# ####+######+#"#"#####""""""" " "" " | | ???# ## " " """ "" | | ???# ## " " """ "" | | ???# ## "" " """""""" " " " "" | | ???# ## """" " " " " " " | | ???+ ## """" " " " " | | ???# ## "" " " !" " | | ???# ## """ """ """" " " % | | ??## ## """T""" " / " " | | ### #################"""""" " " % | | ##### ##????#""""""""""+"""" | | "T "" | | "" """ | | "?" | | #####? ] ### !!! """"" "" | | ### #???######### ![ " " " " " | | ### ###??? + ![ " " " " | | #?# #??????! ### " " """"""" | | #?# #?????? "" #?# " " | | #?# #??????? """ #?####""" " """"""""" | | #?# #??????? T" #????## " " | | #?# #????????""" ??????# " " | | #?# #????????"" ??????##" " | | #?# #????????? ??#####?#" " | | ###?# #????????? ??# #?## " | | ?#### ###########+#### @ #??# " | | ?+ #??# " | | ?# #??# " | | ?## ########"###+##########??# " | | ??# ??????????? ???????????# " | | ??# ??????????? ???????????? # | | ??# ??????????! ?????????????#### ####### ### | | ??# ?????????? ????????????????# ???????#??? | | ??# ?????????# ????????????????????????????? | | ??# ?????????# ????????????????????????????? | | ?? ?????????# #???????????????????????????? | | ?? ?????????# #???????????????????????????? | | ?? ?????????# #???????????????????????????? | | ? ?????????# #???????????????????????????? | | ? ?????????# #???????????????????????????? | | ? ???????????# #???????????????????????????? | | ???????????# #???????????????????????????? | | ##????????????+ #???????????????????????????? | | ??????????????########???????????????????????????? | | ?????????????????????????????????????????????????? | | ?????????????????????????????????????????????????? | | ?????????????????????????????????????????????????? | | ?????????????????????????????????????????????????? | | ?????????????????????????????????????????????????? | | ?????????????????????????????????????????????????? | +----------------------------------------------------+ Best States ------------- Heat Dissipation 168 Coolant Potential 100 Energy Generation 105 Energy Capacity 1790 Matter Stores 334 Matter Capacity 800 Sight Range 24 Terrain Scan Range 24 Terrain Scan Density 210 Jamming Range 12 Cloak Strength 5 Power Amplification 30 Base Temperature (-) 200 Armor Coverage 975 Core Shielding 20 Propulsion Shielding 66 Utility Shielding 90 Evasion (%) 70 Targeting Accuracy 16 Target Analysis 8 Armor Integrity Analysis 66 Recoil Reduction 3 Offensive Hacking 42 Defensive Hacking 32 Item Schematics ----------------- Hacking Suite | -8/Materials | Scanalyzed Lgt. Nuclear Core | -8/Materials | Scanalyzed Lrg. Storage Unit | -8/Materials | Scanalyzed Field Propulsion Array | -7/Factory | Downloaded Fission Core | -7/Factory | Hacked Adv. Armor Integrity Analyzer | -7/Factory | Downloaded Imp. Cryofiber Web | -7/Factory | Hacked Imp. Shield Generator | -6/Factory | Scanalyzed Adv. Hacking Suite | -6/Factory | Hacked Hvy. Rocket Launcher | -6/Factory | Scanalyzed Adv. Terrain Scan Processor | -6/Factory | Scanalyzed Imp. System Shield | -6/Factory | Scanalyzed Micro-nuke Launcher | -6/Extension | Hacked Centrium Medium Armor Plating | -5/Factory | Scanalyzed Lrn. Terrain Scanner | -5/Factory | Scanalyzed Cld. Cesium-ion Thruster | -5/Factory | Hacked Enh. Force Lance | -5/Factory | Hacked Variable Charge Gun | -5/Factory | Hacked Imp. Remote Shield | -5/Factory | Hacked Cmb. Antigrav System | -4/Factory | Hacked Enh. Gamma Bomb Array | -4/Factory | Hacked Centrium Leg | -4/Factory | Hacked Assault Drone Bay | -4/Zhirov | Free Exp. Heat Sink | -4/Zhirov | Free Exp. Optical Array | -4/Zhirov | Free Imp. Arc Thrower | -4/Zhirov | Free Enh. Nova Cannon | -3/Research | Hacked Com. HERF Cannon | -3/Research | Hacked Lgt. Quantum Reactor | -3/Research | Hacked Exp. Energy Well | -3/Testing | Scanalyzed Adv. Coolant Injector | -3/Testing | Scanalyzed Cmb. Linear Gravjet | -2/Quarantine | Hacked Adv. Remote Datajack | -2/Section 7 | Scanalyzed Robot Schematics ------------------ None Fabricated ------------ Adv. Armor Integrity Analyzer | x1 | -7/Factory | Preloaded Hacking Suite | x1 | -7/Factory Hacking Suite | x1 | -7/Factory Adv. Hacking Suite | x1 | -6/Factory Adv. Hacking Suite | x1 | -6/Factory Adv. Hacking Suite | x1 | -6/Factory Field Propulsion Array | x2 | -5/Factory Enh. Force Lance | x1 | -5/Factory Adv. Hacking Suite | x1 | -5/Factory Cmb. Antigrav System | x2 | -4/Factory Enh. Nova Cannon | x1 | -3/Research Com. HERF Cannon | x1 | -3/Research Cmb. Antigrav System | x2 | -3/Testing Cmb. Antigrav System | x2 | -3/Testing Cmb. Linear Gravjet | x2 | -1/Access Cmb. Linear Gravjet | x2 | -1/Access Alien Tech Used ----------------- Integrated Reactor Integrated Singularity Reactor Terrabomb Achievements -------------- Corridor Of Doom Challenges ------------ None Game ------ Seed MicroHardlightFrame Manual? 0 Play Time 03:56:53 Cumulative 232.0 hours Start 2021.10.12 @ 22:47:00 End 2021.10.13 @ 02:49:39 Sessions 1 Manual Loads 0 Difficulty Rogue Special Mode None Game No. 283 Rogue 283 Adventurer 0 Explorer 0 Win Type 0 Total 10 Types 7/0/2/1/0/0/0/0/0 Lore% 85 Gallery% 83 Achievement% 69 Wizard Run 0 Options --------- ASCII 0 Keyboard 0 Movement Arrows Keybinds 0 Fullscreen 1 Font 18/SmallcapsGlow Map View 76x50 Tactical HUD 1 Map Filters NONE Filters NONE Steam 1 RUN: f8b8714b-d858-49b0-b81f-28b668490dc4